bitfinex-derivatives/quotes_BTCF0:USTF0_20250101
["timestamp","ask_amount","ask_price","bid_price","bid_amount"]
[1735735946137,0.009,93806.0,93805.0,0.054405]
[1735735947649,0.009,93806.0,93805.0,0.053405]
[1735735950956,0.062405,93806.0,93805.0,0.053405]
[1735735965551,0.009,93806.0,93784.0,0.3608]
[1735735965752,0.053415,93790.0,93789.0,0.053415]
[1735735966055,0.414215,93790.0,93789.0,0.053415]
[1735735966262,0.3608,93790.0,93780.0,0.0717983]
[1735735966461,0.053415,93789.0,93784.0,0.053417]
[1735735966858,0.053415,93789.0,93785.0,0.053417]
[1735735967064,0.053415,93789.0,93780.0,0.01912862]
[1735735967065,0.053415,93789.0,93786.0,0.053416]
[1735735967458,0.053415,93789.0,93788.0,0.23922668]
[1735735968866,0.07326513,93789.0,93788.0,0.23922668]
[1735735971962,0.07326513,93789.0,93788.0,0.29264168]
[1735735978966,0.053415,93789.0,93788.0,0.29264168]
[1735735981071,0.3856665,93790.0,93789.0,0.053415]
[1735735981272,0.3608,93790.0,93789.0,0.053415]
[1735735983468,0.3608,93790.0,93789.0,0.054415]
[1735735984865,0.3608,93790.0,93789.0,0.086715]
[1735736014297,0.3608,93790.0,93789.0,0.054415]
[1735736019710,0.053408,93801.0,93800.0,0.053407]
[1735736020005,0.053408,93801.0,93800.0,0.414207]
[1735736021291,0.055408,93801.0,93800.0,0.414207]
[1735736021992,0.059408,93801.0,93800.0,0.414207]
[1735736028699,0.006,93801.0,93800.0,0.414207]
[1735736036405,0.0321,93814.0,93800.0,0.414207]
[1735736036604,0.053399,93817.0,93816.0,0.053398]
[1735736036799,0.053399,93817.0,93816.0,0.414198]
[1735736037713,0.058399,93817.0,93816.0,0.415198]
[1735736039520,0.063399,93817.0,93816.0,0.415198]
[1735736040609,0.01,93817.0,93816.0,0.415198]
[1735736057632,0.005,93817.0,93816.0,0.415198]
[1735736057830,0.053391,93831.0,93830.0,0.053391]
[1735736058023,0.053391,93831.0,93830.0,0.414191]
[1735736060231,0.058391,93831.0,93830.0,0.414191]
[1735736060824,0.005,93831.0,93830.0,0.414191]
[1735736075337,0.004,93831.0,93830.0,0.414191]
[1735736076744,0.002,93831.0,93830.0,0.414191]
[1735736076941,0.004,93831.0,93830.0,0.414191]
[1735736082348,0.1836314,93835.0,93830.0,0.414191]
[1735736082543,0.1836314,93835.0,93834.0,0.053389]
[1735736083648,0.1856314,93835.0,93834.0,0.053389]
[1735736084243,0.1876314,93835.0,93834.0,0.053389]
[1735736085049,0.1886314,93835.0,93834.0,0.053389]
[1735736087440,0.15051881,93835.0,93834.0,0.053389]
[1735736088151,0.14951881,93835.0,93834.0,0.053389]
[1735736088354,0.004,93835.0,93834.0,0.053389]
[1735736103856,0.00159869,93854.0,93853.0,0.053378]
[1735736105153,0.00359869,93854.0,93853.0,0.054378]
[1735736106564,0.00959869,93854.0,93853.0,0.055378]
[1735736110858,0.10467663,93875.0,93853.0,0.002]
[1735736111060,0.053368,93871.0,93869.0,0.053369]
[1735736111261,0.053368,93871.0,93870.0,0.053369]
[1735736114172,0.060368,93871.0,93870.0,0.054369]
[1735736114671,0.060368,93871.0,93870.0,0.055369]
[1735736119571,0.007,93871.0,93870.0,0.416169]
[1735736122674,0.007,93871.0,93870.0,0.415169]
[1735736123066,0.086358,93889.0,93888.0,0.053358]
[1735736124672,0.089358,93889.0,93888.0,0.053358]
[1735736124874,0.089358,93889.0,93888.0,0.054358]
[1735736125076,0.11723814,93889.0,93888.0,0.054358]
[1735736125271,0.08423814,93889.0,93888.0,0.054358]
[1735736126373,0.08073814,93889.0,93888.0,0.054358]
[1735736131978,0.03088014,93889.0,93888.0,0.054358]
[1735736132185,0.003,93889.0,93888.0,0.054358]
[1735736137181,0.054358,93889.0,93888.0,0.001]
[1735736137381,0.054358,93889.0,93883.0,0.3608]
[1735736137573,0.053361,93884.0,93883.0,0.3608]
[1735736144980,0.08871401,93884.0,93883.0,0.3608]
[1735736146789,0.08871401,93884.0,93870.0,0.00156]
[1735736146790,0.053368,93871.0,93870.0,0.00156]
[1735736146981,0.053369,93870.0,93862.0,0.053373]
[1735736147181,0.053369,93870.0,93861.0,0.3608]
[1735736147982,0.548369,93870.0,93861.0,0.3608]
[1735736148186,0.048369,93870.0,93861.0,0.3608]
[1735736148489,0.048369,93870.0,93869.0,0.00259777]
[1735736148789,0.58348571,93870.0,93869.0,0.00259777]
[1735736149086,0.08148571,93870.0,93869.0,0.00259777]
[1735736149784,0.58148571,93870.0,93869.0,0.00259777]
[1735736149985,0.58148571,93870.0,93869.0,0.00359777]
[1735736150183,0.08148571,93870.0,93869.0,0.00359777]
[1735736150684,0.58148571,93870.0,93869.0,0.00359777]
[1735736150989,0.08148571,93870.0,93869.0,0.00359777]
[1735736151390,0.1963729,93870.0,93869.0,0.00359777]
[1735736151591,0.6963729,93870.0,93869.0,0.00359777]
[1735736152992,0.1963729,93870.0,93869.0,0.00359777]
[1735736153294,0.6963729,93870.0,93869.0,0.00359777]
[1735736158099,0.58148571,93870.0,93869.0,0.00359777]
[1735736163093,0.08148571,93870.0,93869.0,0.05696677]
[1735736164099,0.08148571,93870.0,93869.0,0.00359777]
[1735736170087,0.053364,93878.0,93870.0,0.053368]
[1735736170288,0.05604779,93885.0,93877.0,0.3608]
[1735736170497,0.053363,93880.0,93878.0,0.3608]
[1735736170698,0.053363,93880.0,93878.0,0.414164]
[1735736170893,0.053363,93879.0,93878.0,0.414164]
[1735736173002,0.055363,93879.0,93878.0,0.414164]
[1735736173300,0.056363,93879.0,93878.0,0.447064]
[1735736180100,0.056363,93879.0,93878.0,0.3608]
[1735736198420,0.056363,93879.0,93878.0,0.30067413]
[1735736199314,0.35841959,93886.0,93878.0,0.30067413]
[1735736200216,0.35841959,93886.0,93878.0,0.22718682]
[1735736200413,0.35841959,93886.0,93870.0,0.053368]
[1735736200615,0.0717983,93880.0,93870.0,0.053368]
[1735736201623,0.0717983,93880.0,93870.0,0.055368]
[1735736202223,0.0717983,93880.0,93870.0,0.056368]
[1735736203122,0.11486644,93885.0,93870.0,0.056368]
[1735736203626,0.47328603,93886.0,93870.0,0.056368]
[1735736204517,0.47328603,93886.0,93877.0,0.3608]
[1735736205927,0.47428603,93886.0,93877.0,0.3608]
[1735736206127,0.47528603,93886.0,93877.0,0.3608]
[1735736206621,0.47528603,93886.0,93876.0,0.3608]
[1735736208230,0.47428603,93886.0,93872.0,0.053367]
[1735736208418,0.47428603,93886.0,93871.0,0.053368]
[1735736210425,0.47428603,93886.0,93859.0,0.053375]
[1735736210630,0.47428603,93886.0,93873.0,0.053366]
[1735736210828,0.47428603,93886.0,93874.0,0.0309]
[1735736211032,0.47328603,93886.0,93874.0,0.0309]
[1735736215624,0.47328603,93886.0,93874.0,0.02455384]
[1735736216226,0.47328603,93886.0,93873.0,0.05000709]
[1735736216436,0.47328603,93886.0,93873.0,0.03924571]
[1735736218931,0.053366,93874.0,93873.0,0.03924571]
[1735736221740,0.053366,93874.0,93873.0,0.02528258]
[1735736222635,0.053366,93874.0,93873.0,0.38608258]
[1735736225330,0.11486644,93885.0,93873.0,0.3608]
[1735736225537,0.11486644,93885.0,93884.0,0.053361]
[1735736226037,0.3608,93887.0,93886.0,0.053359]
[1735736227336,0.3628,93887.0,93886.0,0.053359]
[1735736227532,0.3648,93887.0,93886.0,0.053359]
[1735736228532,0.3628,93887.0,93886.0,0.053359]
[1735736228727,0.3648,93887.0,93886.0,0.053359]
[1735736234243,0.3648,93887.0,93886.0,0.03403541]
[1735736238448,0.36485343,93887.0,93886.0,0.03403541]
[1735736245151,0.00405343,93887.0,93886.0,0.03403541]
[1735736245752,0.00405343,93887.0,93886.0,1.53403541]
[1735736246046,0.00405343,93887.0,93886.0,0.03403541]
[1735736259962,0.04449667,93913.0,93886.0,0.69483541]
[1735736260265,0.0301,93916.0,93915.0,0.053343]
[1735736260464,0.0301,93916.0,93915.0,0.414143]
[1735736261964,0.0321,93916.0,93915.0,0.415143]
[1735736262560,0.0391,93916.0,93915.0,0.416143]
[1735736263658,0.0391,93916.0,93915.0,0.055343]
[1735736264167,0.092442,93916.0,93915.0,0.055343]
[1735736265764,0.053353,93900.0,93899.0,0.053352]
[1735736265963,0.414153,93900.0,93899.0,0.053352]
[1735736266470,0.053353,93897.0,93896.0,0.05494951]
[1735736268062,0.054353,93897.0,93896.0,0.05594951]
[1735736268265,0.058353,93897.0,93896.0,0.05594951]
[1735736270771,0.005,93897.0,93896.0,0.05594951]
[1735736316417,0.005,93897.0,93896.0,0.05494951]
[1735736317916,0.003,93897.0,93896.0,0.05494951]
[1735736323423,0.11483667,93902.0,93901.0,0.053351]
[1735736324517,0.09840781,93903.0,93896.0,0.41722951]
[1735736324722,0.001,93902.0,93901.0,0.001]
[1735736325021,0.004,93902.0,93901.0,0.001]
[1735736325523,0.001,93902.0,93901.0,0.001]
[1735736325914,0.001,93902.0,93901.0,0.054351]
[1735736326313,0.07687706,93909.0,93901.0,0.053351]
[1735736326518,0.07687706,93909.0,93903.0,0.053349]
[1735736327823,0.07687706,93909.0,93903.0,0.054349]
[1735736328027,0.07987706,93909.0,93903.0,0.054349]
[1735736328925,0.19471373,93909.0,93903.0,0.054349]
[1735736330224,0.19471373,93909.0,93903.0,0.001]
[1735736330424,0.19471373,93909.0,93905.0,0.053348]
[1735736331623,0.19571373,93909.0,93905.0,0.053348]
[1735736332726,0.19571373,93909.0,93905.0,0.054348]
[1735736333825,0.00118317,93909.0,93905.0,0.054348]
[1735736334228,0.3608,93906.0,93905.0,0.054348]
[1735736334520,0.5,93905.0,93896.0,0.00159751]
[1735736334728,0.3608,93897.0,93896.0,0.00159751]
[1735736335731,0.3608,93897.0,93896.0,0.00259751]
[1735736338232,0.4756558,93897.0,93896.0,0.00259751]
[1735736338929,0.3608,93897.0,93896.0,0.00259751]
[1735736339924,0.3628,93897.0,93896.0,0.00259751]
[1735736341133,0.3648,93897.0,93896.0,0.00259751]
[1735736343835,0.47964671,93897.0,93896.0,0.00259751]
[1735736349034,0.47764671,93897.0,93896.0,0.00159751]
[1735736349233,0.47864671,93897.0,93896.0,0.00159751]
[1735736351037,0.47864671,93897.0,93896.0,0.05495151]
[1735736351634,0.47864671,93897.0,93896.0,0.00159751]
[1735736352130,0.3638,93897.0,93896.0,0.00159751]
[1735736354441,0.003,93897.0,93896.0,0.00159751]
[1735736354641,0.11784416,93897.0,93896.0,0.00159751]
[1735736355843,0.003,93897.0,93896.0,0.00159751]
[1735736356142,0.002,93897.0,93896.0,0.00159751]
[1735736356342,0.003,93897.0,93896.0,0.00159751]
[1735736367248,0.003,93897.0,93896.0,0.05495151]
[1735736380368,0.001,93897.0,93896.0,0.05495151]
[1735736381268,0.002,93897.0,93896.0,0.05495151]
[1735736382066,0.001,93897.0,93896.0,0.05495151]
[1735736382261,0.002,93897.0,93896.0,0.053354]
[1735736383474,0.001,93897.0,93896.0,0.053354]
[1735736383674,0.002,93897.0,93896.0,0.053354]
[1735736397886,0.002,93897.0,93893.0,0.3608]
[1735736398086,0.0975,93896.0,93893.0,0.3608]
[1735736399493,0.0985,93896.0,93893.0,0.3608]
[1735736400895,0.0985,93896.0,93893.0,0.414155]
[1735736401090,0.0985,93896.0,93893.0,0.3608]
[1735736401994,0.5,93893.0,93885.0,0.05336]
[1735736402693,0.5,93893.0,93886.0,0.053359]
[1735736403800,0.11484703,93892.0,93886.0,0.053359]
[1735736403993,0.11484703,93892.0,93886.0,0.054359]
[1735736405095,0.11484703,93892.0,93886.0,0.055359]
[1735736405800,0.11484703,93892.0,93886.0,0.053359]
[1735736406894,0.16773387,93892.0,93886.0,0.053359]
[1735736407693,0.16773387,93892.0,93883.0,0.053361]
[1735736408004,0.16773387,93892.0,93885.0,0.05336]
[1735736408190,0.05288684,93892.0,93885.0,0.05336]
[1735736408391,0.21234703,93896.0,93885.0,0.05336]
[1735736408595,0.21234703,93896.0,93881.0,0.3608]
[1735736408801,0.21234703,93896.0,93881.0,0.414162]
[1735736409102,0.21234703,93896.0,93883.0,0.001]
[1735736409302,0.21234703,93896.0,93883.0,0.002]
[1735736409601,0.21234703,93896.0,93883.0,0.001]
[1735736409999,0.21234703,93896.0,93882.0,0.053362]
[1735736410597,0.3608,93891.0,93882.0,0.053362]
[1735736412506,0.3618,93891.0,93882.0,0.053362]
[1735736413004,0.3618,93891.0,93883.0,0.053361]
[1735736413202,0.3638,93891.0,93883.0,0.053361]
[1735736414002,0.3648,93891.0,93883.0,0.053361]
[1735736415207,0.3648,93891.0,93881.0,0.3608]
[1735736415405,0.3648,93891.0,93884.0,0.053361]
[1735736415605,0.3638,93891.0,93884.0,0.053361]
[1735736416001,0.3638,93891.0,93881.0,0.3608]
[1735736416201,0.3618,93891.0,93881.0,0.3608]
[1735736416404,0.3628,93891.0,93881.0,0.3608]
[1735736420006,0.3628,93891.0,93881.0,0.414162]
[1735736424411,0.43446085,93891.0,93878.0,0.053364]
[1735736424622,0.5,93881.0,93864.0,0.3608]
[1735736424808,0.3608,93871.0,93869.0,0.053369]
[1735736425008,0.3608,93871.0,93860.0,0.04498252]
[1735736425009,0.07166085,93880.0,93870.0,0.053367]
[1735736425217,0.07166085,93880.0,93872.0,0.053367]
[1735736425616,0.18650788,93880.0,93872.0,0.053367]
[1735736426015,0.68650788,93880.0,93872.0,0.053367]
[1735736426715,0.68750788,93880.0,93872.0,0.053367]
[1735736426912,0.11484703,93879.0,93866.0,0.11427]
[1735736427116,0.11484703,93879.0,93867.0,0.08437]
[1735736427313,0.11484703,93879.0,93868.0,0.05337]
[1735736428320,0.11584703,93879.0,93868.0,0.05337]
[1735736428521,0.11684703,93879.0,93868.0,0.05337]
[1735736429022,0.002,93879.0,93868.0,0.05337]
[1735736429525,0.001,93879.0,93868.0,0.05337]
[1735736429726,0.002,93879.0,93868.0,0.05337]
[1735736429918,0.003,93879.0,93868.0,0.05337]
[1735736430523,0.003,93879.0,93867.0,0.031]
[1735736430714,0.3608,93872.0,93859.0,0.29042419]
[1735736430914,0.07166085,93870.0,93859.0,0.29042419]
[1735736431123,0.07166085,93870.0,93860.0,0.053374]
[1735736431124,0.57166085,93870.0,93860.0,0.053374]
[1735736431429,0.5,93869.0,93860.0,0.053374]
[1735736431935,0.053374,93861.0,93860.0,0.053374]
[1735736433234,0.053374,93861.0,93859.0,0.053375]
[1735736433235,0.053374,93860.0,93859.0,0.053375]
[1735736435932,0.054374,93860.0,93859.0,0.053375]
[1735736440439,0.001,93860.0,93859.0,0.053375]
[1735736441637,0.26385217,93872.0,93856.0,0.40558962]
[1735736441835,0.26385217,93872.0,93863.0,0.053372]
[1735736443147,0.26585217,93872.0,93863.0,0.053372]
[1735736443337,0.31019571,93872.0,93863.0,0.053372]
[1735736443736,0.30919571,93872.0,93863.0,0.053372]
[1735736443946,0.31019571,93872.0,93863.0,0.053372]
[1735736444140,0.31019571,93872.0,93864.0,0.053372]
[1735736445449,0.30919571,93872.0,93864.0,0.053372]
[1735736446545,0.30819571,93872.0,93864.0,0.053372]
[1735736446743,0.30919571,93872.0,93864.0,0.053372]
[1735736450247,0.04534354,93872.0,93866.0,0.3608]
[1735736457855,0.04534354,93872.0,93862.0,0.0307]
[1735736458857,0.11700439,93872.0,93862.0,0.0307]
[1735736459050,0.11600439,93872.0,93862.0,0.0307]
[1735736459256,0.11700439,93872.0,93862.0,0.0307]
[1735736460052,0.11700439,93872.0,93858.0,0.3608]
[1735736461560,0.3608,93874.0,93858.0,0.3608]
[1735736461863,0.11488548,93873.0,93858.0,0.3608]
[1735736462454,0.07166085,93870.0,93858.0,0.3608]
[1735736462955,0.57166085,93870.0,93858.0,0.3608]
[1735736465968,0.41532977,93874.0,93860.0,0.07166085]
[1735736466265,0.41532977,93874.0,93866.0,0.3608]
[1735736468166,0.41632977,93874.0,93866.0,0.3608]
[1735736468668,0.11487601,93873.0,93866.0,0.3608]
[1735736470566,0.11587601,93873.0,93866.0,0.3608]
[1735736472970,0.11587601,93873.0,93861.0,0.064]
[1735736472971,0.11587601,93873.0,93865.0,0.053371]
[1735736473171,0.11587601,93873.0,93861.0,0.478173]
[1735736473467,0.11587601,93873.0,93862.0,0.053373]
[1735736473861,0.001,93873.0,93862.0,0.053373]
[1735736477970,0.001,93873.0,93861.0,0.42628]
[1735736478172,0.001,93873.0,93861.0,0.4248]
[1735736478966,0.3608,93862.0,93861.0,0.0309]
[1735736479166,0.3608,93862.0,93849.0,0.0634]
[1735736479364,0.3608,93853.0,93841.0,0.0319]
[1735736479674,0.07166085,93850.0,93841.0,0.0319]
[1735736480967,0.3608,93853.0,93841.0,0.0349]
[1735736481173,0.11487601,93852.0,93841.0,0.0419]
[1735736484669,0.11487601,93852.0,93841.0,0.0389]
[1735736484868,0.11487601,93852.0,93841.0,0.0419]
[1735736485079,0.41517231,93853.0,93841.0,0.0419]
[1735736487174,0.41517231,93853.0,93841.0,0.0319]
[1735736487477,0.41517231,93853.0,93841.0,0.0419]
[1735736488085,0.11490599,93852.0,93841.0,0.0419]
[1735736489081,0.41517231,93853.0,93841.0,0.0419]
[1735736491178,0.41517231,93853.0,93848.0,0.053381]
[1735736491572,0.41517231,93853.0,93848.0,1.553381]
[1735736491775,0.41517231,93853.0,93848.0,0.053381]
[1735736492379,0.41517231,93853.0,93848.0,0.055381]
[1735736492678,0.41517231,93853.0,93849.0,0.3608]
[1735736492679,0.05437231,93853.0,93849.0,0.3608]
[1735736492878,0.5,93860.0,93849.0,0.3608]
[1735736493187,0.5,93860.0,93850.0,0.07166085]
[1735736493786,0.5,93860.0,93850.0,0.12504085]
[1735736493980,0.05275529,93860.0,93850.0,0.07166085]
[1735736494180,0.5,93868.0,93854.0,0.053377]
[1735736494377,0.4151745,93862.0,93854.0,0.053377]
[1735736494782,0.4151745,93862.0,93855.0,0.053377]
[1735736495590,0.4161745,93862.0,93855.0,0.053377]
[1735736496086,0.4161745,93862.0,93855.0,0.045937]
[1735736496883,0.4161745,93862.0,93851.0,0.0621]
[1735736497088,0.4151745,93862.0,93856.0,0.053376]
[1735736497277,0.4161745,93862.0,93856.0,0.053376]
[1735736497894,0.4151745,93862.0,93856.0,0.053376]
[1735736498088,0.11489753,93861.0,93851.0,0.0621]
[1735736498497,0.11489753,93861.0,93858.0,0.053375]
[1735736499285,0.4161745,93862.0,93858.0,0.053375]
[1735736499590,0.3618,93862.0,93858.0,0.053375]
[1735736499789,0.3618,93862.0,93861.0,0.053374]
[1735736499982,0.001,93862.0,93861.0,0.053374]
[1735736500179,0.001,93862.0,93861.0,0.414174]
[1735736500380,0.3608,93874.0,93866.0,0.053371]
[1735736501897,0.41525099,93874.0,93866.0,0.001]
[1735736502088,0.41725099,93874.0,93866.0,0.001]
[1735736504592,0.3628,93874.0,93866.0,0.001]
[1735736504900,0.3628,93874.0,93868.0,0.053369]
[1735736508403,0.3628,93874.0,93864.0,0.053372]
[1735736508900,0.3628,93874.0,93862.0,0.0301]
[1735736509099,0.3628,93874.0,93865.0,0.053371]
[1735736509690,0.3618,93874.0,93865.0,0.053371]
[1735736510790,0.3618,93874.0,93866.0,0.053371]
[1735736512087,0.3618,93874.0,93867.0,0.05337]
[1735736512600,0.3618,93874.0,93868.0,0.053369]
[1735736512999,0.001,93874.0,93873.0,0.3608]
[1735736513196,0.002,93874.0,93873.0,0.3608]
[1735736514397,0.002,93874.0,93873.0,0.414167]
[1735736515203,0.002,93874.0,93873.0,0.415167]
[1735736515796,0.002,93874.0,93873.0,0.414167]
[1735736515996,0.002,93874.0,93873.0,0.415167]
[1735736516193,0.002,93874.0,93873.0,0.407757]
[1735736528010,0.002,93874.0,93873.0,0.35439]
[1735736530606,0.002,93874.0,93873.0,0.407757]
[1735736536515,0.002,93874.0,93873.0,0.407047]
[1735736542221,0.04546068,93885.0,93873.0,0.407047]
[1735736542222,0.04546068,93885.0,93884.0,0.053361]
[1735736542415,0.0644,93889.0,93884.0,0.053361]
[1735736542817,0.0644,93889.0,93885.0,0.05336]
[1735736543719,0.07073936,93888.0,93885.0,0.05336]
[1735736544511,0.07073936,93888.0,93884.0,0.001]
[1735736544718,0.07073936,93888.0,93887.0,0.053359]
[1735736544916,0.07273936,93888.0,93887.0,0.053359]
[1735736547226,0.07073936,93888.0,93887.0,0.053359]
[1735736547520,0.07273936,93888.0,93887.0,0.054359]
[1735736555437,0.04033936,93888.0,93887.0,0.054359]
[1735736556340,0.002,93888.0,93887.0,0.054359]
[1735736557038,0.002,93888.0,93887.0,0.053649]
[1735736569543,0.002,93888.0,93887.0,0.414449]
[1735736570336,0.00159803,93893.0,93887.0,0.414449]
[1735736570534,0.3608,93899.0,93898.0,0.053353]
[1735736571734,0.3608,93899.0,93898.0,0.054353]
[1735736572144,0.03811217,93903.0,93902.0,0.05335]
[1735736572341,0.3608,93913.0,93908.0,0.053347]
[1735736573047,0.3608,93921.0,93912.0,0.053344]
[1735736573237,0.39836831,93921.0,93912.0,0.053344]
[1735736573737,0.39836831,93921.0,93910.0,0.07166085]
[1735736574047,0.39836831,93921.0,93913.0,0.053344]
[1735736574240,0.39836831,93921.0,93915.0,0.053343]
[1735736574438,0.39836831,93921.0,93910.0,0.07166085]
[1735736574839,0.39836831,93921.0,93919.0,0.05334]
[1735736575042,0.39836831,93921.0,93910.0,0.07166085]
[1735736575043,0.39836831,93921.0,93920.0,0.05334]
[1735736577246,0.39836831,93921.0,93920.0,0.05308]
[1735736577743,0.39836831,93921.0,93920.0,0.05408]
[1735736578445,0.39836831,93921.0,93920.0,0.05508]
[1735736579751,0.39836831,93921.0,93920.0,0.05408]
[1735736582049,0.39836831,93921.0,93920.0,0.05308]
[1735736582252,0.39836831,93921.0,93920.0,0.05408]
[1735736582653,0.39836831,93921.0,93920.0,0.05308]
[1735736582955,0.39836831,93921.0,93920.0,0.05408]
[1735736583551,0.39836831,93921.0,93920.0,0.001]
[1735736586156,0.3608,93921.0,93920.0,0.001]
[1735736586957,0.3608,93921.0,93920.0,0.05434]
[1735736588458,0.0631,93931.0,93930.0,0.053335]
[1735736590550,0.0631,93931.0,93930.0,0.001]
[1735736591965,0.3608,93932.0,93931.0,0.053334]
[1735736592354,0.3608,93932.0,93931.0,0.085834]
[1735736592562,0.03381631,93950.0,93931.0,0.446634]
[1735736592760,0.03381631,93950.0,93939.0,0.053329]
[1735736592966,0.36239766,93949.0,93944.0,0.053326]
[1735736593173,0.36239766,93949.0,93945.0,0.053326]
[1735736594168,0.17492771,93949.0,93945.0,0.053326]
[1735736594553,0.17492771,93949.0,93945.0,0.054326]
[1735736596263,0.17492771,93949.0,93945.0,0.055326]
[1735736596768,0.17492771,93949.0,93945.0,0.002]
[1735736596958,0.17492771,93949.0,93946.0,0.053332]
[1735736597361,0.17492771,93949.0,93945.0,0.002]
[1735736597663,0.17492771,93949.0,93945.0,0.00174]
[1735736598168,0.17492771,93949.0,93946.0,0.001]
[1735736599766,0.17492771,93949.0,93940.0,0.3608]
[1735736599966,0.17492771,93949.0,93946.0,0.001]
[1735736600560,0.17492771,93949.0,93946.0,0.002]
[1735736600763,0.17492771,93949.0,93946.0,0.001]
[1735736601868,0.17492771,93949.0,93946.0,0.002]
[1735736603964,0.17492771,93949.0,93946.0,0.001]
[1735736604180,0.17492771,93949.0,93946.0,0.002]
[1735736605270,0.5,93946.0,93922.0,0.3608]
[1735736605473,0.3608,93936.0,93922.0,0.3608]
[1735736605875,0.3608,93927.0,93921.0,0.00159706]
[1735736606380,0.0955,93926.0,93921.0,0.00159706]
[1735736606672,0.0955,93926.0,93922.0,0.001]
[1735736607262,0.0955,93926.0,93921.0,0.00259706]
[1735736607874,0.0955,93926.0,93922.0,0.001]
[1735736608178,0.5955,93926.0,93922.0,0.001]
[1735736609072,0.62321906,93926.0,93922.0,0.001]
[1735736609458,0.62321906,93926.0,93921.0,0.00159706]
[1735736609662,0.62721906,93926.0,93921.0,0.00259706]
[1735736610174,0.62721906,93926.0,93922.0,0.001]
[1735736611267,0.62721906,93926.0,93921.0,0.00259706]
[1735736612779,0.62321906,93926.0,93921.0,0.00159706]
[1735736612972,0.62521906,93926.0,93922.0,0.001]
[1735736613484,0.62421906,93926.0,93921.0,0.00159706]
[1735736613672,0.62421906,93926.0,93921.0,0.00259706]
[1735736613872,0.62521906,93926.0,93921.0,0.00259706]
[1735736614067,0.62521906,93926.0,93921.0,0.00159706]
[1735736614272,0.62521906,93926.0,93922.0,0.001]
[1735736615565,0.12521906,93926.0,93922.0,0.001]
[1735736615867,0.12521906,93926.0,93901.0,0.053357]
[1735736616069,0.12521906,93926.0,93898.0,0.0281953]
[1735736616070,0.07166085,93913.0,93898.0,0.0281953]
[1735736616378,0.07166085,93913.0,93895.0,0.053361]
[1735736617382,0.07166085,93913.0,93903.0,0.3618]
[1735736618473,0.5,93916.0,93903.0,0.3618]
[1735736618978,0.5,93916.0,93903.0,0.3608]
[1735736619185,0.5,93916.0,93903.0,0.3618]
[1735736620178,0.10920762,93913.0,93903.0,0.3618]
[1735736621277,0.5,93909.0,93903.0,0.3618]
[1735736622976,0.3608,93906.0,93897.0,0.05915308]
[1735736623194,0.3608,93906.0,93903.0,0.001]
[1735736623787,0.3608,93906.0,93897.0,0.0308]
[1735736624089,0.8608,93906.0,93897.0,0.0308]
[1735736624481,0.5,93903.0,93897.0,0.0308]
[1735736624882,0.3608,93906.0,93893.0,0.3608]
[1735736624883,0.8608,93906.0,93893.0,0.3608]
[1735736625184,0.5,93898.0,93893.0,0.3608]
[1735736626078,0.5,93898.0,93893.0,0.3628]
[1735736626282,0.5,93898.0,93897.0,0.001]
[1735736627285,0.5,93898.0,93893.0,0.3648]
[1735736628191,0.0302,93905.0,93893.0,0.3648]
[1735736628586,0.0302,93905.0,93893.0,0.3628]
[1735736629186,0.0302,93905.0,93893.0,0.3618]
[1735736629386,0.0302,93905.0,93897.0,0.001]
[1735736630194,0.0302,93905.0,93893.0,0.3638]
[1735736630792,0.0302,93905.0,93893.0,0.3618]
[1735736630990,0.0302,93905.0,93897.0,0.001]
[1735736633198,0.0302,93905.0,93893.0,0.3628]
[1735736633995,0.0302,93905.0,93897.0,0.001]
[1735736634695,0.0302,93905.0,93893.0,0.3608]
[1735736634996,0.0302,93905.0,93893.0,0.3628]
[1735736635586,0.0302,93905.0,93893.0,0.3638]
[1735736636392,0.0302,93905.0,93893.0,0.3618]
[1735736636592,0.0302,93905.0,93897.0,0.001]
[1735736637497,0.0302,93905.0,93893.0,0.3638]
[1735736638199,0.07168722,93903.0,93893.0,0.3638]
[1735736638394,0.07168722,93903.0,93893.0,0.3628]
[1735736638994,0.07168722,93903.0,93893.0,0.3638]
[1735736640002,0.07168722,93903.0,93897.0,0.001]
[1735736640497,0.3608,93898.0,93883.0,0.3608]
[1735736640799,0.07168722,93894.0,93883.0,0.3608]
[1735736641002,0.5,93888.0,93883.0,0.3608]
[1735736641202,0.07168722,93894.0,93883.0,0.3608]
[1735736641504,0.57168722,93894.0,93883.0,0.3608]
[1735736641707,0.5,93887.0,93884.0,0.0045974]
[1735736641903,0.5,93888.0,93884.0,0.0045974]
[1735736642092,0.07168722,93894.0,93884.0,0.0105974]
[1735736642302,0.60927373,93894.0,93884.0,0.0105974]
[1735736642609,0.5,93888.0,93884.0,0.0105974]
[1735736642997,0.3608,93887.0,93884.0,0.0105974]
[1735736645294,0.3608,93887.0,93884.0,0.0045974]
[1735736645495,0.3608,93887.0,93884.0,0.0105974]
[1735736646405,0.3608,93887.0,93884.0,0.009]
[1735736646794,0.0309,93886.0,93884.0,0.009]
[1735736647904,0.0309,93886.0,93884.0,0.006]
[1735736648103,0.0309,93886.0,93884.0,0.009]
[1735736651706,0.8608,93887.0,93884.0,0.009]
[1735736651707,0.3608,93887.0,93884.0,0.009]
[1735736652110,0.3608,93887.0,93885.0,0.0308]
[1735736653919,0.3608,93887.0,93885.0,0.0338]
[1735736654814,0.3608,93887.0,93885.0,0.0388]
[1735736660111,0.3608,93887.0,93885.0,0.008]
[1735736661517,0.3648,93887.0,93885.0,0.003]
[1735736662022,0.3608,93887.0,93885.0,0.003]
[1735736662322,0.3668,93887.0,93878.0,0.0329]
[1735736662716,0.3668,93887.0,93885.0,0.001]
[1735736663217,0.3698,93887.0,93885.0,0.001]
[1735736676322,0.3698,93887.0,93886.0,0.0306]